bitfinex-derivatives/quotes_ETHF0:USTF0_20260131
["timestamp","ask_amount","ask_price","bid_price","bid_amount"]
[1769855656866,0.1538314,2650.5,2649.6,0.00465056]
[1769855658765,0.1538314,2650.5,2649.6,0.1516199]
[1769855672784,0.00376105,2650.7,2649.6,0.1516199]
[1769855673083,0.15759245,2650.7,2649.6,0.1516199]
[1769855673487,0.15759245,2650.7,2649.7,0.14559424]
[1769855677787,0.00376105,2650.7,2649.8,0.14391796]
[1769855684690,0.14620504,2650.7,2649.8,0.14391796]
[1769855687596,0.00376105,2650.7,2649.8,0.14391796]
[1769855688500,0.00376105,2650.7,2649.9,0.14449439]
[1769855691699,0.14620504,2650.7,2649.9,0.14449439]
[1769855694698,0.14620504,2650.7,2650.0,0.14449439]
[1769855699702,0.14620504,2650.7,2649.8,6.78735111]
[1769855700495,0.14620504,2650.7,2649.9,0.14449439]
[1769855700699,0.14620504,2650.7,2649.9,6.9318455]
[1769855700901,0.14620504,2650.7,2650.0,0.14449439]
[1769855701100,0.00376105,2650.7,2650.0,6.9318455]
[1769855701299,0.00376105,2650.7,2650.1,6.9318455]
[1769855701598,0.14244399,2651.0,2650.2,0.14449439]
[1769855701795,0.14244399,2651.4,2650.2,0.14449439]
[1769855701991,0.14244399,2651.4,2650.4,0.14449439]
[1769855702191,3.91844399,2651.9,2650.7,0.14449439]
[1769855702399,3.776,2651.9,2651.0,0.14449439]
[1769855702694,0.14244399,2651.8,2651.0,0.14449439]
[1769855702895,3.78087045,2651.9,2651.0,0.14449439]
[1769855706911,0.00487045,2651.9,2651.0,0.14449439]
[1769855709906,0.00487045,2651.9,2651.0,0.33340439]
[1769855710113,0.15423861,2652.4,2651.2,0.14792396]
[1769855710310,0.15423861,2652.4,2651.3,0.14792396]
[1769855710710,0.15423861,2652.4,2651.0,2.333]
[1769855710711,0.15423861,2652.4,2651.4,0.18888]
[1769855711007,0.15695343,2652.4,2651.6,0.14792396]
[1769855711209,0.15695343,2652.4,2651.6,0.1508735]
[1769855711906,0.00271482,2652.4,2651.6,0.1508735]
[1769855712807,0.00271482,2652.4,2651.6,0.3397435]
[1769855713010,0.00271482,2652.4,2651.7,0.14792396]
[1769855715623,0.15695343,2652.4,2651.3,0.14792396]
[1769855715828,0.15695343,2652.4,2651.1,0.18891]
[1769855716030,0.15695343,2652.4,2651.2,0.14792396]
[1769855716730,0.15695343,2652.4,2651.2,0.15118211]
[1769855717925,0.15695343,2652.4,2651.2,0.00325815]
[1769855721732,1.42339852,2652.4,2651.2,0.00325815]
[1769855722028,0.15423861,2652.3,2651.2,0.14973351]
[1769855722230,0.15423861,2652.3,2651.3,0.14595747]
[1769855722428,0.15423861,2652.3,2651.4,0.14595747]
[1769855722831,0.15423861,2652.3,2651.2,0.00325815]
[1769855723033,0.15423861,2652.3,2651.2,0.14921562]
[1769855723229,0.15423861,2652.3,2651.2,0.00325815]
[1769855723426,0.15423861,2652.0,2651.2,0.00325815]
[1769855723930,0.15423861,2652.0,2650.6,0.14792396]
[1769855724228,0.15423861,2651.7,2650.6,0.14792396]
[1769855724434,0.15423861,2651.7,2650.5,0.18895]
[1769855724633,0.15423861,2651.7,2650.5,0.38076954]
[1769855724833,0.15423861,2651.7,2650.6,0.19181954]
[1769855726620,0.15423861,2651.7,2650.5,0.19346133]
[1769855728931,0.15423861,2651.7,2650.5,0.34138529]
[1769855729736,0.15423861,2651.7,2650.7,0.14792396]
[1769855730236,0.15423861,2651.7,2650.6,0.19181954]
[1769855730237,0.15423861,2651.7,2650.5,0.19346133]
[1769855730437,0.15423861,2651.7,2650.6,0.19181954]
[1769855732136,0.15423861,2651.7,2650.5,0.15243529]
[1769855732335,0.15423861,2651.7,2650.5,0.34425483]
[1769855732533,0.15423861,2651.7,2650.5,0.19633087]
[1769855732737,0.15423861,2651.4,2650.5,0.00451133]
[1769855733131,0.15423861,2651.4,2650.6,0.19181954]
[1769855734238,0.15423861,2651.4,2650.5,0.00451133]
[1769855734239,0.15423861,2651.4,2650.7,0.19181954]
[1769855734539,0.15423861,2651.4,2650.6,0.19181954]
[1769855735239,0.15423861,2651.4,2650.5,0.00451133]
[1769855735240,0.15423861,2651.4,2650.7,0.19181954]
[1769855735439,0.15423861,2651.4,2650.6,0.19181954]
[1769855735939,0.15423861,2651.4,2650.7,0.19181954]
[1769855736238,0.15423861,2651.4,2650.6,0.19181954]
[1769855736642,0.15423861,2651.1,2650.0,0.14792396]
[1769855737239,0.14533855,2650.8,2649.7,0.15616629]
[1769855737640,0.14533855,2650.8,2649.7,0.15975055]
[1769855737943,0.14533855,2650.6,2649.7,0.15975055]
[1769855747853,2.214,2650.7,2650.0,0.1437959]
[1769855748853,2.36256954,2650.7,2650.0,0.1437959]
[1769855749354,0.14856954,2650.6,2650.0,0.1437959]
[1769855751756,0.14856954,2650.6,2649.7,0.14738016]
[1769855763858,0.14856954,2651.0,2649.8,0.1437959]
[1769855764058,3.776,2651.2,2650.4,0.1437959]
[1769855770265,3.776,2651.2,2650.5,0.1550509]
[1769855772877,0.14562405,2651.5,2650.7,0.1550509]
[1769855781768,0.14562405,2651.7,2650.8,0.1550509]
[1769855782272,0.14562405,2651.7,2650.9,0.1550509]
[1769855782979,0.14562405,2651.9,2651.1,0.1550509]
[1769855783668,0.14562405,2651.9,2651.2,0.1550509]
[1769855785477,0.14562405,2651.9,2651.1,0.18891]
[1769855787182,0.14562405,2651.9,2651.1,0.3439609]
[1769855788786,0.14562405,2651.9,2651.1,0.18891]
[1769855796890,0.14562405,2651.9,2651.1,0.33513006]
[1769855797093,0.14562405,2651.9,2650.9,6.93357117]
[1769855797483,0.14562405,2651.9,2650.6,10.62316984]
[1769855797484,0.14562405,2651.9,2650.6,8.28216984]
[1769855797687,0.15659765,2651.7,2650.2,0.14622006]
[1769855798095,0.15659765,2651.7,2650.0,8.4283899]
[1769855798294,0.15659765,2651.7,2650.1,0.14622006]
[1769855799192,0.15659765,2651.5,2650.1,0.14622006]
[1769855800596,0.15659765,2651.5,2650.2,0.15225029]
[1769855800796,0.15659765,2651.5,2650.3,0.15225029]
[1769855801390,0.15659765,2651.5,2650.4,0.15225029]
[1769855801596,0.15019571,2651.7,2650.4,0.15225029]
[1769855805896,0.15019571,2651.7,2650.5,0.15225029]
[1769855806504,0.15019571,2651.7,2650.7,0.15225029]
[1769855807497,0.15019571,2651.9,2650.7,6.91624653]
[1769855807701,0.15019571,2651.9,2650.9,6.76399624]
[1769855807893,0.15019571,2651.9,2651.0,0.15225029]
[1769855808196,3.775,2652.0,2651.0,0.15225029]
[1769855808197,3.775,2652.0,2651.0,0.34116029]
[1769855808400,3.775,2652.0,2651.2,6.76399624]
[1769855808599,3.775,2652.0,2651.3,0.15225029]
[1769855808801,0.15019571,2652.3,2651.4,0.15225029]
[1769855808995,0.15019571,2652.3,2651.5,0.15225029]
[1769855810600,0.00271482,2652.4,2651.5,0.15225029]
[1769855811202,0.15291053,2652.4,2651.5,0.15225029]
[1769855813210,0.00271482,2652.4,2651.5,0.15225029]
[1769855814812,0.15019571,2653.1,2651.7,0.15225029]
[1769855815106,0.15019571,2653.1,2651.9,0.15225029]
[1769855815914,0.154113,2653.1,2651.9,0.15656654]
[1769855816218,0.154113,2653.1,2652.0,0.15225029]
[1769855816805,0.154113,2653.1,2652.1,0.15225029]
[1769855818205,0.154113,2653.1,2652.2,0.15225029]
[1769855818410,0.00391729,2653.1,2652.3,0.15225029]
[1769855818810,0.15019571,2653.3,2652.3,0.15225029]
[1769855819710,0.1530155,2653.3,2652.3,0.15225029]
[1769855820009,0.1530155,2653.3,2652.2,0.18883]
[1769855820211,0.1530155,2653.3,2652.3,0.15225029]
[1769855822510,0.1530155,2653.3,2651.9,0.00431625]
[1769855825515,0.15019571,2653.0,2651.2,0.15225029]
[1769855825914,0.15019571,2652.6,2651.0,0.18891]
[1769855826115,0.15019571,2652.4,2651.0,0.18891]
[1769855826518,0.15019571,2652.4,2650.8,0.15225029]
[1769855826717,0.15019571,2652.4,2650.8,0.15586446]
[1769855827112,0.1419487,2652.2,2650.8,0.00361417]
[1769855827917,0.1419487,2652.2,2650.8,0.15957375]
[1769855831014,0.1419487,2652.0,2650.8,0.15957375]
[1769855833622,0.1419487,2652.0,2650.8,0.00361417]
[1769855834210,0.1419487,2652.0,2650.8,0.15957375]
[1769855842625,0.1419487,2652.0,2650.8,0.00361417]
[1769855842831,0.1419487,2652.0,2650.8,0.15957375]
[1769855844921,0.1419487,2652.0,2650.8,0.00361417]
[1769855847530,1.15165346,2651.9,2650.8,0.00361417]
[1769855847729,0.1419487,2651.8,2650.8,0.00361417]
[1769855849332,0.1419487,2651.8,2650.8,0.15957375]
[1769855850932,2.213,2652.1,2650.9,0.15595958]
[1769855850933,0.1419487,2652.1,2650.9,0.15595958]
[1769855851337,0.1419487,2652.1,2651.0,0.15595958]
[1769855851635,0.1419487,2652.4,2651.0,0.15595958]
[1769855851841,0.1419487,2652.4,2651.1,0.15595958]
[1769855852434,0.1419487,2652.4,2651.2,0.15595958]
[1769855853342,0.1419487,2652.4,2651.3,0.15595958]
[1769855858645,0.1419487,2652.4,2651.2,6.91730918]
[1769855858847,0.1419487,2652.4,2651.3,0.15331294]
[1769855860849,0.1419487,2652.4,2650.8,0.00361417]
[1769855860850,0.14856668,2651.5,2650.8,0.00361417]
[1769855863150,0.14856668,2651.8,2650.8,0.14916974]
[1769855866754,0.14856668,2651.8,2650.8,0.00361417]
[1769855867259,0.14856668,2651.8,2650.8,0.14916974]
[1769855870760,2.214,2651.9,2650.8,0.14916974]
[1769855870950,2.214,2651.9,2650.9,0.14555557]
[1769855871561,0.14856668,2652.2,2651.0,0.14555557]
[1769855871758,0.14856668,2652.2,2651.2,0.14555557]
[1769855874557,0.14856668,2652.2,2651.3,0.14555557]
[1769855875561,2.214,2652.5,2651.3,0.14555557]
[1769855876060,0.14856668,2652.6,2651.5,0.14555557]
[1769855880961,0.14856668,2652.4,2651.4,6.76399624]
[1769855881266,0.14856668,2652.1,2651.2,8.28216984]
[1769855881453,0.14856668,2652.1,2651.1,0.14555557]
[1769855881657,0.14856668,2652.1,2651.0,6.76399624]
[1769855881968,0.14856668,2652.0,2650.9,6.90955181]
[1769855882864,0.14856668,2652.0,2651.0,0.14555557]
[1769855884467,0.14856668,2652.0,2651.1,0.14555557]
[1769855886962,0.14856668,2652.0,2651.0,6.76399624]
[1769855887357,0.14856668,2652.0,2651.0,0.14312195]
[1769855892372,0.14856668,2652.0,2651.1,0.14312195]
[1769855892773,0.14856668,2652.0,2651.0,6.76399624]
[1769855892974,0.14856668,2652.0,2650.8,6.91073236]
[1769855893477,0.14856668,2652.0,2650.9,0.14312195]
[1769855893876,0.14856668,2652.0,2651.0,0.14312195]
[1769855902678,0.14856668,2652.0,2651.0,6.90711819]
[1769855902982,0.14856668,2652.0,2651.2,0.14312195]
[1769855905886,0.14856668,2652.0,2651.0,0.14312195]
[1769855906283,0.14856668,2652.0,2651.0,6.90711819]
[1769855906482,0.14856668,2652.0,2651.1,0.14312195]
[1769855908484,0.1540165,2652.3,2651.1,0.14312195]
[1769855908686,0.1540165,2652.2,2651.2,6.76399624]
[1769855908888,0.1540165,2652.2,2651.3,6.90711819]
[1769855909285,0.1540165,2652.2,2651.4,0.14312195]
[1769855917092,0.1540165,2652.2,2651.2,6.76399624]
[1769855917093,0.1540165,2652.2,2651.1,6.76399624]
[1769855917797,0.1540165,2652.2,2651.2,6.76399624]
[1769855919491,0.1540165,2652.2,2651.3,0.15640395]
[1769855922698,0.1540165,2652.2,2651.2,6.76399624]
[1769855922899,0.1540165,2652.2,2651.0,6.78568122]
[1769855923099,0.1540165,2652.2,2650.8,8.13138388]
[1769855923300,0.1540165,2652.2,2650.8,0.00361417]
[1769855923499,0.1540165,2652.2,2650.8,0.15370947]
[1769855923701,3.94394181,2652.1,2650.8,0.15370947]
[1769855923897,0.14230243,2652.0,2650.8,0.15370947]
[1769855924903,0.14230243,2652.0,2650.8,0.00361417]
[1769855925103,0.14230243,2652.0,2650.8,0.15370947]
[1769855927305,0.14230243,2651.9,2650.5,0.1500953]
[1769855927603,0.14230243,2651.7,2650.5,0.1500953]
[1769855927794,0.14230243,2651.5,2650.5,0.1500953]
[1769855928502,0.14230243,2651.5,2650.5,0.15285614]
[1769855930098,2.961,2651.6,2650.5,0.15285614]
[1769855930298,3.10330243,2651.6,2650.5,0.15285614]
[1769855930701,0.14230243,2651.8,2650.5,0.15285614]
[1769855931899,0.14230243,2651.8,2650.7,0.1500953]
[1769855932699,0.14230243,2651.8,2650.8,0.1500953]
[1769855932892,2.214,2651.9,2650.8,0.1500953]
[1769855935407,0.14230243,2651.8,2650.8,0.1500953]
[1769855937309,0.14230243,2651.8,2650.7,6.77034375]
[1769855937510,0.14230243,2651.8,2650.5,0.00276084]
[1769855937922,0.14230243,2651.8,2650.5,0.15285614]
[1769855944716,4.513,2651.7,2650.5,0.15285614]
[1769855944910,4.513,2651.7,2650.6,0.1500953]
[1769855946021,4.65530243,2651.7,2650.6,0.1500953]
[1769855950319,4.65530243,2651.7,2650.7,0.15291158]
[1769855950925,0.14230243,2651.7,2650.7,0.15291158]
[1769855952825,2.214,2651.9,2650.7,0.15291158]
[1769855954326,2.214,2651.9,2650.8,0.15291158]
[1769855956227,2.214,2651.9,2650.9,0.15291158]
[1769855956824,0.14696469,2652.0,2650.9,0.15291158]
[1769855959728,0.14696469,2652.0,2651.0,0.15291158]
[1769855975841,0.14696469,2652.0,2650.9,8.46485682]
[1769855976146,0.14696469,2651.4,2650.5,0.00276084]
[1769855976346,0.15072831,2651.4,2650.5,0.00276084]
[1769855976849,0.00376362,2651.4,2650.3,0.34564114]
[1769855977149,1.27010415,2651.4,2650.3,0.34564114]
[1769855977353,1.27010415,2651.4,2650.4,0.15668359]
[1769855977847,1.27583367,2651.4,2650.4,0.1606805]
[1769855979044,0.00572952,2651.3,2650.4,0.1606805]
[1769855979549,0.00376362,2651.4,2650.4,0.1606805]
[1769855979952,0.00376362,2651.4,2650.5,0.15382633]
[1769855980449,0.00569749,2651.9,2650.5,0.15382633]
[1769855981347,0.01023303,2651.9,2650.5,0.15382633]
[1769855981547,0.00569749,2651.8,2650.5,0.15382633]
[1769855982758,0.00453554,2651.9,2650.6,0.15398913]
[1769855982956,0.00453554,2651.9,2650.6,0.34292913]
[1769855983156,0.00453554,2651.9,2650.7,0.15398913]
[1769855983457,0.00453554,2651.9,2650.7,1.42032966]
[1769855983645,0.00453554,2651.9,2650.7,1.26634053]
[1769855983852,0.00453554,2651.9,2650.8,0.15398913]
[1769855985465,0.00453554,2651.9,2650.5,8.28021469]
[1769855985466,0.00453554,2651.9,2651.1,0.15440135]
[1769855988465,0.00521842,2652.9,2651.7,0.15406587]
[1769855988873,1.26634053,2652.8,2651.7,0.15406587]
[1769855989059,0.00521842,2652.4,2651.4,0.34295587]
[1769855989264,0.00521842,2652.4,2651.5,0.15406587]
[1769855989463,0.00521842,2652.1,2651.2,0.15406587]
[1769855991667,1.26634053,2652.2,2651.2,0.15406587]
[1769855991874,0.00677859,2652.3,2651.2,0.15406587]
[1769855992975,0.00267223,2652.4,2651.2,0.15406587]
[1769856004286,0.01033811,2652.3,2651.2,0.15406587]
[1769856004786,0.01033811,2652.1,2651.2,0.15406587]
[1769856004985,0.01033811,2651.8,2651.0,0.15150602]
[1769856007979,0.01033811,2651.8,2650.6,0.15271469]
[1769856008183,1.26634053,2651.9,2650.6,0.15271469]
[1769856011594,1.27406964,2651.9,2650.6,0.15271469]
[1769856012386,5.987,2652.0,2650.7,0.15266315]
[1769856013393,5.987,2652.0,2650.8,0.15266315]
[1769856014691,0.00316668,2651.9,2650.8,0.15266315]
[1769856021400,2.213,2652.0,2650.8,0.15266315]
[1769856022800,2.21645451,2652.0,2650.8,0.15266315]
[1769856022999,0.00345451,2651.9,2650.8,0.15266315]
[1769856024101,2.213,2652.0,2650.8,0.15266315]
[1769856027501,2.21580176,2652.0,2650.8,0.15266315]
[1769856028201,2.213,2652.0,2650.8,0.15266315]
[1769856031308,2.213,2652.0,2650.8,8.43287784]
[1769856031607,2.213,2652.0,2650.9,0.15437164]
[1769856032910,0.00339169,2651.9,2650.9,0.15437164]
[1769856034407,0.00339169,2651.9,2650.7,0.1548922]
[1769856041515,2.213,2652.0,2650.7,0.1548922]
[1769856045617,2.213,2652.0,2650.8,0.15762348]
[1769856070741,2.213,2652.0,2650.9,0.15852105]
[1769856074750,2.213,2652.0,2651.0,0.15880382]
[1769856077452,2.213,2652.0,2651.1,0.15881533]
[1769856077646,0.00267223,2652.4,2651.1,0.15881533]
[1769856078854,0.00267223,2652.4,2651.3,0.15872853]
[1769856080445,6.49,2653.0,2651.6,0.15906603]
[1769856080650,2.214,2652.9,2651.6,0.15906603]
[1769856081460,2.21776219,2652.9,2651.6,0.15906603]
[1769856087563,1.26595964,2652.8,2651.6,0.15906603]
[1769856097562,2.21776219,2652.9,2651.6,0.15906603]
[1769856098572,2.21776219,2652.9,2651.7,0.16073118]
[1769856100066,0.00376219,2652.9,2651.9,0.16141508]
[1769856100572,0.00376219,2652.9,2652.0,0.16141508]
[1769856106777,2.25803494,2653.8,2652.5,0.15919708]
[1769856106982,4.362,2654.1,2652.5,0.15919708]
[1769856107882,4.36678698,2654.1,2652.5,0.16253627]
[1769856108280,1.26595964,2653.9,2652.5,0.16253627]
[1769856109979,0.0012258,2653.8,2652.5,0.16253627]
[1769856111477,4.36678698,2654.1,2652.5,0.00333919]
[1769856111478,0.0012258,2653.2,2652.5,0.00333919]
[1769856112484,0.0012258,2653.2,2652.5,0.15935628]
[1769856113091,0.00131278,2653.5,2652.5,0.15935628]
[1769856116678,4.36678698,2654.1,2652.7,0.15641578]
[1769856121692,0.00478698,2654.1,2652.8,0.1563323]
[1769856121885,13.25244239,2655.2,2652.5,0.00333919]
[1769856121886,3.91195964,2655.5,2654.1,0.1563323]
[1769856122085,1.26595964,2655.2,2654.1,0.1563323]
[1769856122287,1.26595964,2655.2,2653.8,0.18871]
[1769856122288,2.25803494,2655.1,2653.9,0.15632145]
[1769856122783,2.25803494,2655.0,2653.9,0.15632145]
[1769856123188,2.25803494,2654.9,2653.9,0.15632145]
[1769856123382,2.25803494,2655.0,2653.9,0.15632145]
[1769856123790,2.25803494,2654.9,2653.9,0.15632145]
[1769856123986,2.25803494,2655.0,2653.9,0.15632145]
[1769856124490,2.25803494,2654.9,2653.9,0.15632145]
[1769856124687,2.25803494,2655.0,2653.9,0.15632145]
[1769856124983,0.00461751,2655.1,2653.9,0.15632145]
[1769856125189,2.25803494,2654.8,2653.9,0.15632145]
[1769856125494,2.25803494,2654.9,2653.9,0.15632145]
[1769856125899,2.25803494,2654.8,2653.9,0.15632145]
[1769856126296,2.25889501,2654.8,2653.9,0.15632145]
[1769856128298,2.25803494,2654.8,2653.9,0.15632145]
[1769856130198,0.00112179,2654.9,2654.1,0.15659776]
[1769856130396,0.00461751,2655.1,2654.1,0.15659776]
[1769856130397,0.00570991,2655.1,2654.1,0.15659776]
[1769856130700,2.25803494,2654.9,2654.1,0.15659776]
[1769856131001,2.25803494,2654.8,2654.1,0.15659776]
[1769856131500,2.25803494,2654.7,2654.1,0.15659776]
[1769856131697,2.25803494,2654.8,2654.1,0.15659776]
[1769856132096,2.25803494,2654.7,2654.1,0.15659776]
[1769856132296,2.25803494,2654.8,2654.1,0.15659776]
[1769856132699,2.25803494,2654.7,2654.1,0.15659776]
[1769856132896,0.00461751,2655.1,2654.4,0.15659776]
[1769856133100,0.00461751,2655.1,2654.4,0.0048677]
[1769856133302,0.00461751,2655.1,2654.4,0.16146546]
[1769856133490,2.25803494,2655.0,2654.4,0.16146546]
[1769856133894,2.25803494,2654.9,2654.4,0.16146546]
[1769856134094,2.26265245,2655.1,2654.4,0.16146546]
[1769856136591,2.25803494,2655.0,2654.4,0.16146546]
[1769856141307,2.25803494,2654.9,2654.4,0.16146546]
[1769856141508,2.25803494,2655.0,2654.4,0.16146546]
[1769856142206,2.25803494,2654.9,2654.4,0.16146546]
[1769856142409,2.25803494,2655.0,2654.4,0.16146546]
[1769856142900,2.25803494,2654.9,2654.4,0.16146546]
[1769856143100,2.25803494,2655.0,2654.4,0.16146546]
[1769856143609,2.25803494,2654.9,2654.4,0.16146546]
[1769856143808,2.25803494,2655.0,2654.4,0.16146546]
[1769856144304,2.25803494,2654.9,2654.4,0.16146546]
[1769856144505,2.25803494,2655.0,2654.4,0.16146546]
[1769856144906,2.25803494,2654.9,2654.4,0.16146546]
[1769856145098,2.25803494,2655.0,2654.4,0.16146546]
[1769856145512,2.25803494,2654.9,2654.4,0.16146546]
[1769856145811,2.25803494,2655.0,2654.4,0.16146546]
[1769856146200,2.25803494,2654.9,2654.4,0.16146546]
[1769856146398,0.00461751,2655.1,2654.4,0.16146546]
[1769856146602,2.25803494,2654.9,2654.4,0.16146546]
[1769856146999,0.14104766,2655.9,2654.4,0.16146546]
[1769856147205,0.14104766,2655.6,2654.4,0.0048677]
[1769856147907,0.14389008,2655.6,2654.4,0.0048677]
[1769856148902,0.14104766,2655.4,2654.4,0.0048677]
[1769856149413,0.14104766,2655.2,2654.4,0.0048677]
[1769856160234,0.14104766,2655.2,2654.4,0.15286112]
[1769856164931,4.349,2655.3,2654.4,0.15286112]
[1769856165530,4.374,2655.3,2654.4,0.15286112]
[1769856165731,0.14452043,2655.2,2654.5,6.73867352]
[1769856165932,0.14452043,2655.2,2654.6,0.14799342]
[1769856166541,4.374,2655.3,2654.6,0.14799342]
[1769856167942,0.14452043,2655.4,2654.6,0.14799342]
[1769856168337,0.14452043,2655.4,2654.5,6.73867352]
[1769856168640,0.14452043,2655.4,2654.4,0.0048677]
[1769856170543,3.87565599,2655.3,2653.9,0.15662028]
[1769856170735,4.375,2655.5,2653.9,0.15662028]
[1769856170932,3.87588693,2655.4,2653.9,0.15662028]
[1769856171143,3.87588693,2655.3,2653.9,0.15662028]
[1769856171342,4.375,2655.5,2653.9,0.15662028]
[1769856171544,3.87535979,2655.4,2653.9,0.15926393]
[1769856171744,3.87535979,2655.3,2653.9,0.00264365]
[1769856172041,4.375,2655.5,2653.9,0.15926393]
[1769856172243,3.87493404,2655.4,2653.9,0.15926393]
[1769856172431,3.87493404,2655.3,2653.9,0.15926393]
[1769856172632,4.375,2655.5,2653.9,0.15926393]
[1769856172835,3.87493423,2655.4,2653.9,0.15926393]
[1769856173032,3.87493423,2655.3,2653.9,0.15926393]
[1769856173236,4.375,2655.5,2653.9,0.15926393]
[1769856173536,3.87457518,2655.4,2653.9,0.15926393]
[1769856173736,3.87457518,2655.3,2653.9,0.15926393]
[1769856173936,3.77,2655.2,2653.9,0.15926393]
[1769856177047,3.77,2655.2,2653.9,0.00264365]
[1769856180653,3.87277773,2655.1,2653.9,0.00264365]
[1769856180855,4.447,2655.0,2653.9,0.00264365]
[1769856181153,4.447,2655.0,2653.9,0.15929997]
[1769856181656,4.447,2655.0,2653.9,0.00264365]
[1769856181850,4.447,2655.0,2653.0,9.73331079]
[1769856181851,1.26350771,2654.8,2653.3,6.77085975]
[1769856182154,0.18867,2654.5,2653.0,8.43690014]
[1769856182355,49.12328759,2654.4,2653.0,0.15668545]
[1769856182654,45.251,2654.4,2653.0,0.15668545]
[1769856182843,45.251,2654.4,2653.0,0.00452841]
[1769856184854,45.251,2654.4,2653.0,0.16240315]
[1769856186054,3.771,2654.3,2653.0,0.16240315]
[1769856191257,0.18867,2654.5,2653.0,0.16240315]
[1769856191457,4.543,2654.2,2653.0,0.16240315]
[1769856208565,6.49,2654.7,2653.0,0.16240315]
[1769856208766,8.44513581,2654.6,2653.2,0.15913754]
[1769856208962,4.553,2654.6,2653.2,0.15913754]
[1769856209271,4.553,2654.6,2653.3,0.15913754]
[1769856209970,4.553,2654.6,2653.4,0.15913754]
[1769856211568,4.553,2654.6,2653.5,0.15880744]
[1769856213282,3.51699699,2655.0,2653.5,0.15880744]
[1769856213571,8.46704464,2654.9,2653.5,0.15880744]
[1769856213971,3.89304464,2654.8,2653.5,0.15880744]
[1769856214161,4.574,2654.9,2653.5,0.15880744]
[1769856214361,3.89236255,2654.8,2653.5,0.15880744]
[1769856214565,4.574,2654.9,2653.5,0.15880744]
[1769856214772,3.89236234,2654.8,2653.5,0.15880744]
[1769856215073,4.574,2654.9,2653.5,0.15880744]
[1769856215270,3.8918145,2654.8,2653.5,0.15880744]
[1769856215460,4.574,2654.9,2653.5,0.15880744]
[1769856215663,3.89181457,2654.8,2653.5,0.15880744]
[1769856215867,4.574,2654.9,2653.5,0.15880744]
[1769856216068,3.89181372,2654.8,2653.5,0.15880744]
[1769856216269,4.574,2654.9,2653.5,0.15880744]
[1769856216472,3.89131663,2654.8,2653.5,0.15880744]
[1769856216675,4.574,2654.9,2653.5,0.15880744]
[1769856216876,3.89131692,2654.8,2653.5,0.15880744]
[1769856217176,4.574,2654.9,2653.5,0.15880744]
[1769856222883,0.18862,2655.1,2653.5,0.15880744]
[1769856223179,4.638,2655.0,2653.7,0.15745858]
[1769856223377,4.638,2655.0,2653.8,0.15745858]
[1769856232184,0.90273744,2655.6,2654.1,0.15699216]
[1769856232388,13.54059922,2655.5,2654.1,0.15699216]
[1769856232686,9.66398127,2655.5,2654.1,0.15699216]
[1769856234179,8.4,2655.5,2654.1,0.15699216]
[1769856236490,1.26398127,2655.4,2654.1,0.15699216]
[1769856239394,1.26398127,2655.4,2653.9,0.15740892]
[1769856241094,1.26398127,2655.4,2654.1,0.15753984]
[1769856241795,1.26398127,2655.4,2653.6,6.77085975]
[1769856241796,1e-08,2654.7,2653.6,6.77085975]
[1769856241995,4.702,2654.6,2653.4,6.92839959]
[1769856242591,4.702,2654.6,2653.5,0.1589923]
[1769856242992,4.702,2654.6,2653.8,0.1589923]
[1769856251206,4.702,2654.6,2653.8,6.92985205]
[1769856251411,4.702,2654.6,2653.9,0.16024182]
[1769856254503,6.02898897,2655.5,2654.1,0.16035317]
[1769856254811,6.09951247,2655.4,2654.1,0.16035317]
[1769856255011,2.211,2655.4,2654.1,0.16035317]
[1769856255506,0.00284242,2655.6,2654.4,0.16035317]
[1769856255705,0.00284242,2655.6,2654.7,0.16035317]
[1769856256707,4.706,2655.9,2654.8,0.16025468]
[1769856257712,4.71020279,2655.9,2655.0,0.16025468]
[1769856257913,4.71020279,2655.9,2655.0,0.16333799]
[1769856264124,0.00420279,2655.9,2655.0,0.16333799]
[1769856269420,0.00420279,2655.9,2655.0,0.00308331]
[1769856273920,0.00420279,2655.9,2655.0,0.16529614]
[1769856279632,0.00420279,2655.9,2655.0,0.00308331]
[1769856283839,0.00420279,2655.9,2655.0,0.1650436]
[1769856284637,0.00420279,2655.9,2654.3,0.16163626]
[1769856284638,1.26289976,2655.7,2654.3,0.16163626]
[1769856284834,4.664,2655.6,2654.1,0.16163626]
[1769856285036,44.68217694,2655.5,2654.1,0.16163626]
[1769856285234,40.8,2655.5,2654.1,0.16163626]
[1769856285635,4.664,2655.6,2654.1,0.16446813]
[1769856285834,3.88269222,2655.5,2654.1,0.16446813]
[1769856286142,45.464,2655.6,2654.1,0.16446813]
[1769856286346,3.88092424,2655.5,2654.1,0.16446813]
[1769856286548,45.464,2655.6,2654.1,0.16446813]
[1769856286748,3.88092242,2655.5,2654.1,0.16446813]
[1769856286937,45.464,2655.6,2654.1,0.16446813]
[1769856287135,3.88092535,2655.5,2654.1,0.16446813]
[1769856287445,45.464,2655.6,2654.1,0.16446813]
[1769856287637,3.87942981,2655.5,2654.1,0.16446813]
[1769856287836,45.464,2655.6,2654.1,0.16446813]
[1769856288038,3.87943135,2655.5,2654.1,0.16446813]
[1769856288343,45.464,2655.6,2654.1,0.16446813]
[1769856288544,3.87815074,2655.5,2654.1,0.16446813]
[1769856288750,45.464,2655.6,2654.1,0.16446813]
[1769856288936,3.87818107,2655.5,2654.1,0.16446813]
[1769856289245,45.464,2655.6,2654.1,0.16446813]
[1769856289436,3.87702255,2655.5,2654.1,0.16446813]
[1769856289639,45.65259,2655.6,2654.1,0.16446813]
[1769856289839,3.87702255,2655.5,2654.1,0.16446813]
[1769856290045,45.65259,2655.6,2654.1,0.16446813]
[1769856291643,4.85259,2655.6,2654.1,0.16446813]
[1769856292744,3.77,2655.5,2654.1,0.16446813]
[1769856296041,3.77,2655.5,2654.2,0.16347439]
[1769856299352,3.77,2655.5,2654.2,6.93433414]
[1769856299656,3.77,2655.5,2654.3,0.16371542]
[1769856300547,2.211,2655.8,2654.4,0.16372839]
[1769856300754,0.18858,2655.7,2654.4,0.16372839]
[1769856306955,2.211,2655.8,2654.4,0.16372839]
[1769856309546,3.88300757,2655.7,2654.4,0.16372839]
[1769856309742,2.211,2655.8,2654.4,0.16372839]
[1769856309953,3.88303281,2655.7,2654.4,0.16372839]
[1769856310155,2.211,2655.8,2654.4,0.16372839]
[1769856310352,3.88364488,2655.7,2654.4,0.16372839]
[1769856310554,2.211,2655.8,2654.4,0.16372839]
[1769856310755,3.88364591,2655.7,2654.4,0.16372839]
[1769856310943,0.18861,2655.4,2654.1,0.00283187]
[1769856311144,3.77,2655.3,2654.1,0.00283187]
[1769856311350,8.7346848,2655.2,2654.1,0.00283187]
[1769856311549,4.851,2655.2,2654.1,0.00283187]
[1769856311754,3.88434795,2655.1,2654.1,0.00283187]
[1769856312053,4.851,2655.2,2654.1,0.16629284]
[1769856315859,2.26219176,2655.9,2654.1,0.16629284]